Cogmind - Beta 13 @@@ ROGUE MODE // 2024.07.15 @ 17:56:19 Player: TheGreatPlup Result: Core destroyed Performance ------------- Evolutions (1) 500 Regions Visited (3) 600 Robots Destroyed (53) 265 Value Destroyed (1358) 1358 Prototype IDs (0) 0 Alien Tech Used (0) 0 Bonus (148) 148 TOTAL SCORE: 2871 Bonus ------- High Alert Combat Kills 81 Follower Combat Kills 67 Cogmind --------- Core Integrity 0/400 Matter 287/300 Energy 92/125 System Corruption 0% Temperature Critical (570) Movement Treading (161) Location -9/Mines Parts ------- > --- POWER (1) -------- Light Ion Engine > --- PROPULSION (3) --- Armored Treads Armored Treads Advanced Treads > --- UTILITY (3) ------ Large Storage Unit Visual Processing Unit Targeting Computer > --- WEAPON (2) ------- Beam Rifle Particle Gun > --- INVENTORY (15) --- Ion Engine Advanced Treads Advanced Treads Advanced Treads Large Battery (200) Large Matter Pod (150) Sensor Array Signal Interpreter Light Armor Plating Small Laser Heavy Assault Rifle Peak State ------------ > --- POWER ------------ Improved Ion Engine > --- PROPULSION ------- Armored Treads Armored Treads Armored Treads > --- UTILITY ---------- Large Storage Unit Visual Processing Unit Targeting Computer > --- WEAPON ----------- Assault Rifle Light Assault Rifle > --- INVENTORY -------- Ion Engine Ion Engine Armored Treads Advanced Treads Advanced Treads Advanced Treads Advanced Treads Large Battery Large Matter Pod Sensor Array Signal Interpreter Small Laser [Rating: 19] Favorites ----------- Power Ion Engine Engine Ion Engine Propulsion Armored Treads Treads Armored Treads Leg Aluminum Leg Utility Visual Processing Unit Storage Large Storage Unit Processor Visual Processing Unit Weapon Light Assault Rifle Energy Gun EM Pulse Gun Ballistic Gun Light Assault Rifle Build | -11 -10 -9 -9 ------- Run | Yrd Mat Mat Min Slots Evolved 2 | . . 2 . Power . | . . . . Propulsion 1 | . . 1 . Utility 1 | . . 1 . Weapon . | . . . . Parts Attached 37 | 6 11 17 3 Power 7 | 1 1 4 1 Engine 7 | 1 1 4 1 Core . | . . . . Reactor . | . . . . Propulsion 12 | 2 2 7 1 Treads 10 | . 2 7 1 Leg 2 | 2 . . . Wheel . | . . . . Hover . | . . . . Flight . | . . . . Utility 7 | 1 5 1 . Device . | . . . . Storage 5 | 1 4 . . Processor 2 | . 1 1 . Hackware . | . . . . Protection . | . . . . Artifact . | . . . . Weapon 11 | 2 3 5 1 Energy Gun 5 | 1 1 2 1 Energy Cannon . | . . . . Ballistic Gun 6 | 1 2 3 . Ballistic Cannon . | . . . . Launcher . | . . . . Special Weapon . | . . . . Impact Weapon . | . . . . Slashing Weapon . | . . . . Piercing Weapon . | . . . . Special Melee Weapon . | . . . . Unidentified Prototypes . | . . . . Parts Lost 12 | . 1 9 2 Power 4 | . . 4 . Propulsion 3 | . . 2 1 Utility . | . . . . Weapon 5 | . 1 3 1 Highest Loss Streak 5 | . 1 5 1 To Critical Strikes . | . . . . Average Slot Usage (%) 96 | . 97 93 99 Engine 11 | . 14 9 11 Treads 18 | . 3 29 32 Leg 10 | . 24 . . Storage 12 | . 14 11 11 Processor 17 | . 11 20 22 Energy Gun 10 | . 14 6 11 Ballistic Gun 13 | . 13 15 10 Naked Turns . | . . . . Heaviest Build 30 | 12 29 30 27 Greatest Support 62 | 20 40 62 62 Greatest Overweight (x) 8 | 1 1 8 . Average Overweight (x) . | . . . . Largest Inventory Capacity 25 | 8 25 15 15 Average Capacity 13 | 6 12 15 15 Most Carried 15 | 5 15 15 13 Average Carried 11 | 3 11 12 12 Final Capacity 15 | 8 15 15 15 Final Carried 15 | 4 15 13 11 Class Distribution -------------------- 81% | Mutant 18% | Scavenger-Mutant Dominant Class ---------------- Mutant | -10/Materials Mutant | -9/Materials Scavenger-Mutant | -9/Mines Resources | -11 -10 -9 -9 ----------- Run | Yrd Mat Mat Min Matter Collected 1021 | 243 250 494 34 Remotely . | . . . . Salvage Created 1709 | . 575 826 308 Parts 108 | . 39 46 23 Haulers Intercepted . | . . . . Recyclers Shooed . | . . . . Parts Field Recycled . | . . . . Retrieved Matter . | . . . . Parts Self-Destructed . | . . . . Prevented . | . . . . Kills | -11 -10 -9 -9 ------- Run | Yrd Mat Mat Min Combat Hostiles Destroyed 47 | . 13 22 12 Guns 46 | . 12 22 12 AOE 1 | . 1 . . Classes Destroyed 7 | . 5 2 . Recycler 2 | . 2 . . Operator 1 | . 1 . . Watcher 3 | . 3 . . Swarmer 20 | . 6 7 7 Grunt 20 | . 7 8 5 Duelist 1 | . . 1 . Sentry 6 | . . 6 . Best Kill Streak 8 | . 8 4 7 Combat Bots Only 7 | . 3 4 7 Max Kills in Single Turn 2 | . 1 2 2 Gunslinging 1 | . . 1 1 Exploded 1 | . 1 . . Melee . | . . . . Uniques/NPCs Destroyed . | . . . . Combat | -11 -10 -9 -9 -------- Run | Yrd Mat Mat Min Hostile Shots Fired 321 | . 61 190 70 Missed 98 | . 19 57 22 Damage Taken 2850 | . 448 1870 532 Core 557 | . 146 300 111 Absorbed by Shields . | . . . . Core Remaining (%) 70 | 100 41 . . Volleys Fired 176 | . 37 112 27 Largest 2 | . 2 2 2 Hottest 121 | . 60 76 121 Shots Fired 344 | . 73 218 53 Gun 344 | . 73 218 53 Cannon . | . . . . Launcher . | . . . . Special . | . . . . Kinetic 212 | . 36 159 17 Thermal 92 | . . 56 36 Explosive . | . . . . Electromagnetic 40 | . 37 3 . Robot Hit Streak 23 | . 10 23 9 Robot Miss Streak 5 | . 5 3 3 Penetration Max . | . . . . Secondary Targets 9 | . . 4 5 Max Gunslinging Chain 1 | . . 1 1 Shots Hit Robots 220 | . 42 145 33 Core Hits 86 | . 25 44 17 Critical Kills 1 | . 1 . . Critical Parts Destroyed . | . . . . Critical Strikes 9 | . 1 5 3 Burn 8 | . . 5 3 Destroy 1 | . 1 . . Melee Attacks . | . . . . Impact . | . . . . Slashing . | . . . . Piercing . | . . . . Sneak Attacks . | . . . . Combat Hostiles . | . . . . Follow-up Attacks . | . . . . Damage Inflicted 2654 | . 604 1603 447 Guns 2535 | . 485 1603 447 Cannons . | . . . . Explosions 119 | . 119 . . Melee . | . . . . Ramming . | . . . . Kinetic 1326 | . 212 1018 96 Thermal 1014 | . 119 544 351 Explosive . | . . . . Electromagnetic 314 | . 273 41 . Impact . | . . . . Slashing . | . . . . Piercing . | . . . . Highest Corruption . | . . . . Average Corruption . | . . . . Corruption Purged . | . . . . Corruption Blocked . | . . . . Overload Shots . | . . . . Overflow Damage . | . . . . Projectiles . | . . . . Explosions . | . . . . Melee . | . . . . Knockbacks . | . . . . Impact . | . . . . Kinetic . | . . . . Secondary . | . . . . Self-Inflicted Damage 15 | . 15 . . Shots 1 | . 1 . . Rammed . | . . . . Targets Rammed . | . . . . Kicked . | . . . . Crushed . | . . . . Highest Temperature 570 | . 64 124 570 Average Temperature 55 | . 27 42 119 Received Heat Transfer 954 | . 159 618 177 Effects 6 | . . . 6 Shutdowns 2 | . . . 2 Energy Bleed 1 | . . . 1 Interference 1 | . . . 1 Damage (minor) 1 | . . . 1 Damage (core) 1 | . . . 1 Siege Activations . | . . . . Robots Corrupted . | . . . . Combat Hostiles . | . . . . Parts Fried 1 | . 1 . . Impact Corruptions . | . . . . Robots Melted . | . . . . Combat Hostiles . | . . . . Parts Melted 6 | . . 3 3 Heat Transferred 2936 | . 50 1776 1110 Parts Sabotaged . | . . . . Parts Stolen . | . . . . Parts Stripped . | . . . . Power Chain Reactions 2 | . 2 . . Alert | -11 -10 -9 -9 ------- Run | Yrd Mat Mat Min Peak Influence 580 | . 297 580 517 Initial 167 | . . 16 167 Average 218 | . 131 293 304 Maximum Alert Level 2 | . 1 2 2 Low Security (%) 49 | 100 76 36 1 Level 1 33 | . 23 27 78 Level 2 17 | . . 36 20 Level 3 . | . . . . Level 4 . | . . . . Level 5 . | . . . . High Security . | . . . . Max Security . | . . . . Squads Dispatched 8 | . 2 6 . Investigation 2 | . 1 1 . Extermination . | . . . . Reinforcement 5 | . 1 4 . Assault 1 | . . 1 . Garrison . | . . . . Intercept . | . . . . Searches Triggered . | . . . . Construction Impeded . | . . . . Haulers Reinforced . | . . . . Active Scanning Responses . | . . . . Cargo Convoy Interrupts . | . . . . Stealth | -11 -10 -9 -9 --------- Run | Yrd Mat Mat Min Distress Signals 2 | . . 2 . Communications Jammed . | . . . . Distress Signals . | . . . . Times Spotted 72 | . 19 37 16 Peak Tracking Total 5 | . 3 5 4 Tactical Retreats 2 | . . 2 . Traps | -11 -10 -9 -9 ------- Run | Yrd Mat Mat Min Traps Triggered 2 | . 1 1 . Indirectly . | . . . . Trap Hack Attempts . | . . . . Triggered . | . . . . Disarmed . | . . . . Reprogrammed . | . . . . Reused . | . . . . Traps Extracted . | . . . . Installed . | . . . . Triggered . | . . . . Machines | -11 -10 -9 -9 ---------- Run | Yrd Mat Mat Min Machines Disabled 2 | . . 1 1 Max in Single Turn 1 | . . 1 1 Machines Repaired . | . . . . Machines Dismantled . | . . . . Machines Sabotaged . | . . . . Overloaded Fab Kills . | . . . . Hacking | -11 -10 -9 -9 --------- Run | Yrd Mat Mat Min Machines Accessed . | . . . . Terminals . | . . . . Fabricators . | . . . . Repair Stations . | . . . . Recycling Units . | . . . . Scanalyzers . | . . . . Garrison Access . | . . . . Total Hacks . | . . . . Successful . | . . . . Failed . | . . . . Catastrophic . | . . . . Database Lockouts . | . . . . Manual . | . . . . Terminals . | . . . . Fabricators . | . . . . Repair Stations . | . . . . Recycling Units . | . . . . Scanalyzers . | . . . . Garrison Access . | . . . . Terminal Hacks . | . . . . Fabricator Hacks . | . . . . Repair Station Hacks . | . . . . Recycling Unit Hacks . | . . . . Scanalyzer . | . . . . Garrison Access Hacks . | . . . . Unauthorized Hacks . | . . . . Terminals . | . . . . Fabricators . | . . . . Repair Stations . | . . . . Recycling Units . | . . . . Scanalyzers . | . . . . Garrison Access . | . . . . Data Cores Recovered 1 | . 1 . . Used . | . . . . Hacking Detections . | . . . . Full Trace Events . | . . . . Feedback Events . | . . . . Feedback Blocked . | . . . . Robot Schematics Acquired . | . . . . Robots Built . | . . . . Authchips . | . . . . Time . | . . . . Total Robot Build Rating . | . . . . Part Schematics Acquired . | . . . . Parts Built . | . . . . Authchips . | . . . . Time . | . . . . Total Part Build Rating . | . . . . Parts Repaired . | . . . . Time . | . . . . Parts Recycled . | . . . . Recycled Matter . | . . . . Retrieved Matter . | . . . . Retrieved Components . | . . . . Parts Scanalyzed . | . . . . Part Schematics Acquired . | . . . . Parts Damaged . | . . . . Bothacking | -11 -10 -9 -9 ------------ Run | Yrd Mat Mat Min Used RIF Installer . | . . . . Robots Hacked . | . . . . Non-combat . | . . . . Combat . | . . . . Robot Hacks Applied . | . . . . Relay Couplers Released . | . . . . Fabnet Peak Effective % . | . . . . Robots Rewired . | . . . . Allies Hacked . | . . . . Hacks Repelled . | . . . . Allies | -11 -10 -9 -9 -------- Run | Yrd Mat Mat Min Total Allies 1 | . . . 1 Largest Group 1 | . . . 1 Highest-Rated Group 31 | . . . 31 Highest-Rated Ally 31 | . . . 31 Total Orders . | . . . . Ally Attacks 17 | . . . 17 Total Damage 210 | . . . 210 Kills 3 | . . . 3 Allies Corrupted . | . . . . Allies Melted . | . . . . Intel | -11 -10 -9 -9 ------- Run | Yrd Mat Mat Min Robot Analysis Total . | . . . . Derelict Logs Recovered 1 | . . . 1 Drone Launches . | . . . . Drone Recoveries . | . . . . Exploration | -11 -10 -9 -9 ------------- Run | Yrd Mat Mat Min Turns Passed 2199 | 62 926 833 378 Spaces Moved 943 | 49 487 243 164 Core 24 | 15 . 9 . Treads 462 | . 64 234 164 Legs 457 | 34 423 . . Wheels . | . . . . Hover . | . . . . Flight . | . . . . Fastest Speed 50 | 50 120 157 161 Average Speed 159 | 99 152 178 168 Slowest Speed 450 | 120 240 450 170 Overloaded Moves . | . . . . Propulsion Burnouts . | . . . . Robots Hopped . | . . . . Cave-ins Triggered . | . . . . Exploration Rate (%) 40 | 3 84 32 41 Regions Visited 3 Branch Regions 1 Pre-discovered Areas 1 | . . . 1 Known Exits Taken . | . . . . Unknown Exits Taken 3 | 1 1 1 . Scrap Searched . | . . . . Spaces Dug . | . . . . Terrain Destroyed 8 | . 8 . . Melee . | . . . . Projectile . | . . . . AOE 8 | . 8 . . Terrain Rammed . | . . . . Walls Destroyed . | . . . . Machines Disabled . | . . . . Actions | -11 -10 -9 -9 --------- Run | Yrd Mat Mat Min Total 1325 | 59 602 447 217 Wait 115 | . 43 51 21 Move 940 | 48 486 242 164 Hop . | . . . . Pick Up 37 | 5 16 15 1 Fast Attach 10 | 5 2 3 . Attach 16 | 1 2 11 2 Detach . | . . . . Swap 11 | . 7 3 1 Drop 20 | . 9 10 1 Fire 176 | . 37 112 27 Melee . | . . . . Ram . | . . . . Kick . | . . . . Crush . | . . . . Escape Stasis . | . . . . Rewire . | . . . . Trap . | . . . . Miscellaneous . | . . . . Route ------- -11/Scrapyard -10/Materials (discovered 4 exits: *Mat x2 / [*Min x2]) -9/Materials -9/Mines (discovered 1 exit: Mat) History --------- Turn | Location | Event 4 | -11/Scrapyard | Discovered new exit (range 14) 63 | -11/Scrapyard | Entered Materials 237 | -10/Materials | Discovered new exit (range 7) 323 | -10/Materials | Build established: Mutant 604 | -10/Materials | Discovered new exit (range 18) 739 | -10/Materials | Discovered new exit (range 12) 774 | -10/Materials | Core integrity fell below 50% 898 | -10/Materials | Discovered new exit (range 11) 989 | -10/Materials | Entered another Materials area 989 | -9/Materials | Evolved 2 slots: Propulsion x1, Utility x1 1105 | -9/Materials | Lost 5 parts (1p1n3w) 1424 | -9/Materials | Core integrity fell below 50% 1581 | -9/Materials | Discovered new exit (range 15) 1789 | -9/Materials | First assault squad dispatched 1822 | -9/Materials | Entered Mines 1829 | -9/Mines | Escorted by a lone wolf Derelict 1850 | -9/Mines | Learned location of Storage (-8) 1918 | -9/Mines | Identified exit to Materials 2057 | -9/Mines | Build established: Scavenger-Mutant 2092 | -9/Mines | A Derelict revealed a hidden shortcut to a safe place 2121 | -9/Mines | Core integrity fell below 20% 2150 | -9/Mines | Destroyed 7 combat bots 2201 | -9/Mines | Core destroyed Last Messages --------------- 02188_ Overheating: Beam Rifle damaged (-32). 02189_ Power failure, Lgt. Ion Engine shutdown. 02190_ G-34 Mercenary overheating. 02191_ K-01 Serf collects debris. 02192_ G-34 Mercenary heat damages Aluminum Leg. 02193_ G-34 Mercenary overheating. 02194_ K-01 Serf collects debris. 02194_ G-34 Mercenary overheating. 02196_ G-34 Mercenary destroyed. 02196_ Switching to secondary target: G-47 Trooper. 02197_ Overheating: Energy bleed (-26). 02197_ K-01 Serf collects debris. 02199_ Power failure, Lgt. Ion Engine shutdown. 02199_ Particle Gun melted. 02199_ Imp. Heat Sink melted. 02199_ G-47 Trooper destroyed. 02200_ Overheating: System interference. 02200_ Beam Rifle temporarily disabled. 02200_ K-01 Serf collects debris. 02201_ Overheating: Core damaged (-48). Map ----- +----------------------------------------------------+ | ?????????????????????????????????????????????????? | | ?????????????????????????????????????????????????? | | ?????????????????????????????????????????????????? | | ?????????????????????????????????????????????????? | | ?????????????????????????????????????????????????? | | ?????????????????????????????????????????###?##??? | | ??????????????????????????????????? ?????# ? ??? | | ??????????????????????????????????? ???? #? #??? | | ??????????????????????????????????# ????# #? #??? | | ??????????????????????####????????# ????# #? #??? | | ?????????????????????? ????????# ????# #? #??? | | ??????????????????????" ????????# ????# ## #### | | ??????????????????????" ????????# ???## | | ??????????????????????" ????????# ???# ? | | ?????????????????????? ????????# ???# =% #?? | | ????????????????????""" ????????# #??# *%[#? | | ??????????????????" """ #???????# #??# % ## | | ????????????????""" """ #???????# #?## ## | | ???????###??????? #???????# ### ## | | ?###### ##?????""" """ #???????# =*[ | | ## #??????"" """ #???????# =* | | # #?????""" "" !#???????# =%## | | # #?????? %[[#???????## [%!#?? | | ?# #????????"" """ k%#????????# ### [##??? | | ??# #?????????"" """ =#????????# #?###%#????? | | ??## ###????# """ """ @########## #???#=####= | | ???## ##???# #???#= *%= | | ????## ##??#########################???#%##### | | ?????# #####??????????????????????????#[#????? | | ?????# ##????????????????########## #????? | | ?????## ####?????????????# #????? | | ??????##### ##????????????# ##########????? | | ???#??????## ########?????# #?????????????? | | ??? ##??#### ####### #####?????????? | | ??? ??# ##????????? | | ??? ??# ### ##### ########## #????????? | | ??? ??# #?#### ##??# #????????# ##???????? | | ??? ??# #????## ##?# #????????## ##??????? | | ???# #??# #?????## ### #?????????## #??????? | | ???# #??# #??????## #??????????# ##?????? | | ???# #??# #???????### ### #??????????# ###???? | | ???# ??%=#?????????# #?# #??????????## #???? | | #??# #??############# #?# #??????????## #???? | | ##?# #?????# #?# #???????????## ##???? | | ### ####### ##########?### #????????????####????? | | #????????????? ????????????????????? | | #############????????????? ???????????????????? | | #?????????????????????????### ??????????????????< | | #???????????????????????????? ??????????????????? | | ##????????????????????????????? ?????????????????? | +----------------------------------------------------+ Best States ------------- Heat Dissipation 28 Energy Generation 12 Energy Capacity 265 Matter Stores 300 Matter Capacity 300 Sight Range 18 Terrain Scan Density 10 Evasion (%) 55 Targeting Accuracy 5 Recoil Reduction 3 Item Schematics ----------------- None Robot Schematics ------------------ None Fabricated ------------ Nothing Alien Tech Used ----------------- None Achievements -------------- Significant Disruption Challenges ------------ None Game ------ Seed DisruptorEnhancedKit Manual? 0 Play Time 00:35:39 Cumulative 9.4 hours Start 2024.07.15 @ 14:06:31 End 2024.07.15 @ 17:56:19 Sessions 3 Manual Loads 0 Difficulty Rogue Special Mode None Game No. 11 Rogue 11 Adventurer 0 Explorer 0 Win Type - Total 0 Types 0/0/0/0/0/0/0/0/0 Lore% 14 Gallery% 9 Achievement% 10 Wizard Run 0 Options --------- Layout 0 ASCII 0 Keyboard 0 Movement Mouse Keybinds 0 Fullscreen 2 Font 18/Smallcaps Map View 38x25 Zoom Use 92% Tactical HUD 1 Map Filters NONE Filters NONE Steam 1 RUN: ed899836-7bb0-4253-bb01-d17f2c6497e6